[Event "*** Titled Tuesday Blitz"]
[Site "Chess.com"]
[Date "2021.03.16"]
[Round "10"]
[White "GameOverBro"]
[Black "ARTHURMOTIVATOR"]
[Result "1-0"]
[WhiteElo "2529"]
[BlackElo "2388"]
[TimeControl "180+1"]
[EndTime "11:53:13 PDT"]
[Termination "GameOverBro won by resignation"]

1. e4 {[%clk 0:03:00.9]} 1... e5 {[%clk 0:02:59]} 2. Nf3 {[%clk 0:02:59.4]} 2...
Nc6 {[%clk 0:02:59.5]} 3. Bb5 {[%clk 0:03:00]} 3... a6 {[%clk 0:02:57.8]} 4. Ba4
{[%clk 0:03:00.6]} 4... d6 {[%clk 0:02:57.8]} 5. d4 {[%clk 0:03:01.2]} 5... Bd7
{[%clk 0:02:55.9]} 6. O-O {[%clk 0:02:51.7]} 6... Nf6 {[%clk 0:02:53]} 7. Re1
{[%clk 0:02:45.2]} 7... Be7 {[%clk 0:02:44.2]} 8. c3 {[%clk 0:02:45.2]} 8... O-O
{[%clk 0:02:41.1]} 9. Nbd2 {[%clk 0:02:45.7]} 9... h6 {[%clk 0:02:30.3]} 10. h3
{[%clk 0:02:44.5]} 10... b5 {[%clk 0:02:25.6]} 11. Bb3 {[%clk 0:02:44.1]} 11...
Re8 {[%clk 0:01:58.7]} 12. Nf1 {[%clk 0:02:42.9]} 12... Bf8 {[%clk 0:01:58.1]}
13. Ng3 {[%clk 0:02:42.6]} 13... Na5 {[%clk 0:01:54.1]} 14. Bc2 {[%clk 0:02:42]}
14... c5 {[%clk 0:01:50.9]} 15. a3 {[%clk 0:02:22.6]} 15... Qc7 {[%clk
0:01:46.9]} 16. b3 {[%clk 0:02:12.4]} 16... Rac8 {[%clk 0:01:45.4]} 17. dxe5
{[%clk 0:02:06.5]} 17... dxe5 {[%clk 0:01:41.7]} 18. Nh4 {[%clk 0:01:59.1]}
18... g6 {[%clk 0:01:32.1]} 19. Qf3 {[%clk 0:01:54.7]} 19... Re6 {[%clk
0:01:04.9]} 20. Be3 {[%clk 0:01:45.3]} 20... Bc6 {[%clk 0:01:03.5]} 21. Rad1
{[%clk 0:01:44.3]} 21... Nb7 {[%clk 0:01:00.6]} 22. b4 {[%clk 0:01:41.4]} 22...
c4 {[%clk 0:00:58.2]} 23. a4 {[%clk 0:01:40.8]} 23... Nd6 {[%clk 0:00:54.1]} 24.
a5 {[%clk 0:01:38.2]} 24... Qb7 {[%clk 0:00:52.2]} 25. Bc5 {[%clk 0:01:35.8]}
25... Nde8 {[%clk 0:00:40]} 26. Bxf8 {[%clk 0:01:30.2]} 26... Kxf8 {[%clk
0:00:40.9]} 27. Qe3 {[%clk 0:01:29.5]} 27... Ng8 {[%clk 0:00:37.1]} 28. Rd2
{[%clk 0:01:23.8]} 28... Qe7 {[%clk 0:00:32.3]} 29. Nf3 {[%clk 0:01:22]} 29...
Rd8 {[%clk 0:00:27.1]} 30. Red1 {[%clk 0:01:21]} 30... Rxd2 {[%clk 0:00:25.8]}
31. Rxd2 {[%clk 0:01:20.5]} 31... Rd6 {[%clk 0:00:23.8]} 32. Kf1 {[%clk
0:01:18.8]} 32... Rxd2 {[%clk 0:00:22.1]} 33. Qxd2 {[%clk 0:01:19.7]} 33... Ngf6
{[%clk 0:00:20.2]} 34. Qxh6+ {[%clk 0:01:19.5]} 34... Kg8 {[%clk 0:00:19.9]} 35.
Qg5 {[%clk 0:01:18.9]} 35... Kg7 {[%clk 0:00:17]} 36. Nf5+ {[%clk 0:01:18.3]}
1-0

[Event "*** Titled Tuesday Blitz"]
[Site "Chess.com"]
[Date "2021.03.16"]
[Round "10"]
[White "Szparu"]
[Black "mbachez"]
[Result "0-1"]
[WhiteElo "2609"]
[BlackElo "2495"]
[TimeControl "180+1"]
[EndTime "11:53:17 PDT"]
[Termination "mbachez won by checkmate"]

1. e4 {[%clk 0:03:00.9]} 1... e6 {[%clk 0:03:00.2]} 2. d4 {[%clk 0:02:58.5]}
2... d5 {[%clk 0:03:00.3]} 3. Nd2 {[%clk 0:02:54.6]} 3... h6 {[%clk 0:03:00.5]}
4. Ngf3 {[%clk 0:02:47.8]} 4... Nf6 {[%clk 0:03:00.3]} 5. Bd3 {[%clk 0:02:36.8]}
5... c5 {[%clk 0:03:00.1]} 6. exd5 {[%clk 0:02:23.6]} 6... Qxd5 {[%clk
0:02:56.1]} 7. O-O {[%clk 0:02:22.6]} 7... cxd4 {[%clk 0:02:55.2]} 8. Nb3 {[%clk
0:02:07]} 8... Nc6 {[%clk 0:02:54.7]} 9. Nbxd4 {[%clk 0:02:02.6]} 9... Nxd4
{[%clk 0:02:53]} 10. Nxd4 {[%clk 0:02:03.4]} 10... Bc5 {[%clk 0:02:50.3]} 11.
Nb5 {[%clk 0:01:53.1]} 11... Bb6 {[%clk 0:02:37.9]} 12. Be3 {[%clk 0:01:37.2]}
12... Qd8 {[%clk 0:02:36.1]} 13. Nd6+ {[%clk 0:01:25.9]} 13... Qxd6 {[%clk
0:02:33.4]} 14. Bb5+ {[%clk 0:01:13.5]} 14... Ke7 {[%clk 0:02:31.4]} 15. Qe2
{[%clk 0:01:11]} 15... Bxe3 {[%clk 0:02:30.1]} 16. Qxe3 {[%clk 0:01:10.9]} 16...
Rd8 {[%clk 0:02:27.3]} 17. Be2 {[%clk 0:01:05.4]} 17... Qb6 {[%clk 0:02:25.6]}
18. Qa3+ {[%clk 0:01:04.1]} 18... Qd6 {[%clk 0:02:22.5]} 19. Qe3 {[%clk
0:01:00.9]} 19... Nd5 {[%clk 0:02:22.6]} 20. Qd4 {[%clk 0:00:57.8]} 20... Nf4
{[%clk 0:02:22.5]} 21. Qe3 {[%clk 0:00:57.6]} 21... Nxe2+ {[%clk 0:02:19]} 22.
Qxe2 {[%clk 0:00:58.5]} 22... Kf8 {[%clk 0:02:17.6]} 23. Qe4 {[%clk 0:00:58.4]}
23... Kg8 {[%clk 0:02:16.4]} 24. h4 {[%clk 0:00:57.3]} 24... Bd7 {[%clk
0:02:13.4]} 25. Rfd1 {[%clk 0:00:56]} 25... Bc6 {[%clk 0:02:10.9]} 26. Qg4
{[%clk 0:00:53.9]} 26... Qe5 {[%clk 0:02:09.4]} 27. Re1 {[%clk 0:00:51.7]} 27...
Qxb2 {[%clk 0:02:08.4]} 28. Rab1 {[%clk 0:00:51.9]} 28... Qxc2 {[%clk
0:02:07.3]} 29. Rb3 {[%clk 0:00:51.3]} 29... Qf5 {[%clk 0:02:02.4]} 30. Qb4
{[%clk 0:00:47.8]} 30... Rd5 {[%clk 0:01:56.2]} 31. Rg3 {[%clk 0:00:47]} 31...
Rad8 {[%clk 0:01:55.9]} 32. Qe7 {[%clk 0:00:41]} 32... Rd1 {[%clk 0:01:51.7]}
33. Kh2 {[%clk 0:00:36.4]} 33... Rxe1 {[%clk 0:01:47.2]} 34. Qxd8+ {[%clk
0:00:36.1]} 34... Kh7 {[%clk 0:01:45]} 35. Qd4 {[%clk 0:00:35.5]} 35... Qe5
{[%clk 0:01:39.4]} 36. Qg4 {[%clk 0:00:30.3]} 36... g6 {[%clk 0:01:38.6]} 37. f4
{[%clk 0:00:28.2]} 37... Qd4 {[%clk 0:01:36.8]} 38. Rb3 {[%clk 0:00:21.3]} 38...
Qg1+ {[%clk 0:01:35.9]} 39. Kh3 {[%clk 0:00:21]} 39... Qh1+ {[%clk 0:01:35.9]}
40. Kg3 {[%clk 0:00:20]} 40... Qxg2# {[%clk 0:01:35.6]} 0-1

[Event "*** Titled Tuesday Blitz"]
[Site "Chess.com"]
[Date "2021.03.16"]
[Round "10"]
[White "blitzking1729"]
[Black "Evgeny81"]
[Result "0-1"]
[WhiteElo "2628"]
[BlackElo "2776"]
[TimeControl "180+1"]
[EndTime "11:53:20 PDT"]
[Termination "Evgeny81 won by resignation"]

1. d4 {[%clk 0:03:00.9]} 1... Nf6 {[%clk 0:02:58.2]} 2. Bg5 {[%clk 0:03:00.9]}
2... Ne4 {[%clk 0:02:53.8]} 3. Bf4 {[%clk 0:03:00.9]} 3... c5 {[%clk 0:02:47.1]}
4. f3 {[%clk 0:03:00.4]} 4... Qa5+ {[%clk 0:02:45.7]} 5. c3 {[%clk 0:02:47.3]}
5... Nf6 {[%clk 0:02:45.9]} 6. d5 {[%clk 0:02:46.8]} 6... e6 {[%clk 0:02:46.1]}
7. e4 {[%clk 0:02:46.7]} 7... exd5 {[%clk 0:02:45.9]} 8. exd5 {[%clk 0:02:46.8]}
8... d6 {[%clk 0:02:44.3]} 9. Na3 {[%clk 0:02:45.2]} 9... Be7 {[%clk 0:02:40.6]}
10. Bb5+ {[%clk 0:02:16.7]} 10... Bd7 {[%clk 0:02:38.7]} 11. Bxd7+ {[%clk
0:02:16.5]} 11... Nbxd7 {[%clk 0:02:38.6]} 12. Nc4 {[%clk 0:02:13.7]} 12... Qa6
{[%clk 0:02:37]} 13. Ne3 {[%clk 0:02:03]} 13... Nh5 {[%clk 0:02:31.9]} 14. Ne2
{[%clk 0:02:00.6]} 14... Nxf4 {[%clk 0:02:29.6]} 15. Nxf4 {[%clk 0:02:00.6]}
15... Bg5 {[%clk 0:02:30]} 16. g3 {[%clk 0:01:52]} 16... Bxf4 {[%clk 0:02:29.8]}
17. gxf4 {[%clk 0:01:52.2]} 17... O-O {[%clk 0:02:30.4]} 18. Kf2 {[%clk
0:01:52.3]} 18... Rae8 {[%clk 0:02:22.5]} 19. Qd2 {[%clk 0:01:48.2]} 19... Nf6
{[%clk 0:02:12]} 20. b3 {[%clk 0:01:37.1]} 20... Re4 {[%clk 0:02:06.5]} 21. Nf5
{[%clk 0:01:31.3]} 21... Rfe8 {[%clk 0:02:02.9]} 22. c4 {[%clk 0:01:25.8]} 22...
Re2+ {[%clk 0:01:58.1]} 23. Qxe2 {[%clk 0:01:24.6]} 23... Rxe2+ {[%clk 0:01:59]}
24. Kxe2 {[%clk 0:01:24.7]} 24... Nxd5 {[%clk 0:01:53.5]} 25. Kf2 {[%clk
0:01:21.2]} 25... Nxf4 {[%clk 0:01:49.6]} 26. Rhd1 {[%clk 0:01:20.7]} 26... d5
{[%clk 0:01:48]} 27. Ne7+ {[%clk 0:01:18.7]} 27... Kf8 {[%clk 0:01:47.3]} 28.
Nxd5 {[%clk 0:01:19.1]} 28... Ne6 {[%clk 0:01:35.5]} 29. Nc3 {[%clk 0:01:04]}
29... Nd4 {[%clk 0:01:28.7]} 30. Ne2 {[%clk 0:01:03.7]} 30... Qh6 {[%clk
0:01:16.2]} 31. Nxd4 {[%clk 0:00:59.4]} 31... Qxh2+ {[%clk 0:01:15.6]} 32. Ke3
{[%clk 0:00:49.2]} 32... Qe5+ {[%clk 0:01:15.4]} 33. Kf2 {[%clk 0:00:49.4]}
33... cxd4 {[%clk 0:01:14.5]} 34. Kg2 {[%clk 0:00:39.1]} 34... h5 {[%clk
0:01:06.9]} 35. Rd2 {[%clk 0:00:32.8]} 35... Qg5+ {[%clk 0:01:06.6]} 0-1

[Event "*** Titled Tuesday Blitz"]
[Site "Chess.com"]
[Date "2021.03.16"]
[Round "10"]
[White "hypert"]
[Black "DrMamaliga"]
[Result "1-0"]
[WhiteElo "2564"]
[BlackElo "2388"]
[TimeControl "180+1"]
[EndTime "11:53:27 PDT"]
[Termination "hypert won by resignation"]

1. e3 {[%clk 0:03:00.9]} 1... g6 {[%clk 0:02:59]} 2. h4 {[%clk 0:02:57.8]} 2...
Bg7 {[%clk 0:02:59.9]} 3. h5 {[%clk 0:02:58]} 3... c5 {[%clk 0:03:00.4]} 4. c4
{[%clk 0:02:57]} 4... Nc6 {[%clk 0:03:00]} 5. Nc3 {[%clk 0:02:56.8]} 5... d6
{[%clk 0:02:59.8]} 6. b3 {[%clk 0:02:56.5]} 6... e6 {[%clk 0:02:55.6]} 7. Bb2
{[%clk 0:02:56.4]} 7... Nge7 {[%clk 0:02:52.3]} 8. Nge2 {[%clk 0:02:53]} 8... b6
{[%clk 0:02:52.4]} 9. Ng3 {[%clk 0:02:52.6]} 9... Bb7 {[%clk 0:02:52.2]} 10. h6
{[%clk 0:02:50.2]} 10... Bf6 {[%clk 0:02:45.2]} 11. Nge4 {[%clk 0:02:49.9]}
11... Ng8 {[%clk 0:02:44.6]} 12. Nxf6+ {[%clk 0:02:48.5]} 12... Nxf6 {[%clk
0:02:45.5]} 13. g4 {[%clk 0:02:36.7]} 13... Nd4 {[%clk 0:02:36.2]} 14. Rh3
{[%clk 0:02:34.7]} 14... Nc6 {[%clk 0:02:15.6]} 15. g5 {[%clk 0:02:26.7]} 15...
Nd7 {[%clk 0:02:15.5]} 16. Ne4 {[%clk 0:02:24.7]} 16... O-O {[%clk 0:02:10.3]}
17. Nxd6 {[%clk 0:02:23.1]} 17... Rb8 {[%clk 0:01:59.6]} 18. Nxb7 {[%clk
0:02:14.3]} 18... Rxb7 {[%clk 0:02:00.5]} 19. f4 {[%clk 0:02:13.5]} 19... e5
{[%clk 0:01:57.4]} 20. Bg2 {[%clk 0:02:11.2]} 20... Qc8 {[%clk 0:01:54.3]} 21.
Qf3 {[%clk 0:02:09.6]} 21... Rc7 {[%clk 0:01:46.9]} 22. O-O-O {[%clk 0:02:08.1]}
22... exf4 {[%clk 0:01:43.3]} 23. exf4 {[%clk 0:02:07.7]} 23... Nb4 {[%clk
0:01:43.6]} 24. a3 {[%clk 0:02:03.5]} 24... Nc6 {[%clk 0:01:43.5]} 25. Qd3
{[%clk 0:01:51.9]} 25... Rd8 {[%clk 0:01:37]} 26. Bxc6 {[%clk 0:01:38.9]} 26...
Rxc6 {[%clk 0:01:37.9]} 27. Qc3 {[%clk 0:01:38.7]} 27... f6 {[%clk 0:01:36.3]}
28. f5 {[%clk 0:01:37.6]} 28... Nf8 {[%clk 0:01:00.3]} 29. fxg6 {[%clk
0:01:31.5]} 29... Nxg6 {[%clk 0:00:54.5]} 30. gxf6 {[%clk 0:01:30.6]} 30... Kf7
{[%clk 0:00:54.5]} 31. Re1 {[%clk 0:01:23.4]} 31... Rcd6 {[%clk 0:00:53.9]} 32.
Rhe3 {[%clk 0:01:19.5]} 32... R8d7 {[%clk 0:00:48.1]} 33. Re7+ {[%clk
0:01:12.2]} 33... Rxe7 {[%clk 0:00:19.8]} 34. fxe7 {[%clk 0:01:09.5]} 34... Rd4
{[%clk 0:00:11.9]} 1-0

[Event "*** Titled Tuesday Blitz"]
[Site "Chess.com"]
[Date "2021.03.16"]
[Round "10"]
[White "campomania3"]
[Black "Pantata007"]
[Result "0-1"]
[WhiteElo "2184"]
[BlackElo "2338"]
[TimeControl "180+1"]
[EndTime "11:53:27 PDT"]
[Termination "Pantata007 won on time"]

1. d4 {[%clk 0:03:00.9]} 1... d5 {[%clk 0:02:41.8]} 2. c4 {[%clk 0:03:00.6]}
2... c6 {[%clk 0:02:41.8]} 3. cxd5 {[%clk 0:03:00.6]} 3... cxd5 {[%clk
0:02:41.7]} 4. Nf3 {[%clk 0:03:01.3]} 4... Nc6 {[%clk 0:02:38.6]} 5. Nc3 {[%clk
0:03:01.8]} 5... Nf6 {[%clk 0:02:38.1]} 6. Bf4 {[%clk 0:03:02.2]} 6... Bf5
{[%clk 0:02:38.2]} 7. e3 {[%clk 0:03:01.2]} 7... e6 {[%clk 0:02:38.4]} 8. Bb5
{[%clk 0:03:01]} 8... Nd7 {[%clk 0:02:38.6]} 9. Qa4 {[%clk 0:02:59.9]} 9... Rc8
{[%clk 0:02:36.4]} 10. O-O {[%clk 0:02:58.3]} 10... Be7 {[%clk 0:02:36]} 11.
Bxc6 {[%clk 0:02:33.4]} 11... Rxc6 {[%clk 0:02:26.3]} 12. Qxa7 {[%clk
0:02:32.7]} 12... Rb6 {[%clk 0:01:55.2]} 13. b3 {[%clk 0:01:43.2]} 13... Qc8
{[%clk 0:01:51.8]} 14. Rfc1 {[%clk 0:01:19.3]} 14... Ra6 {[%clk 0:01:45.9]} 15.
Qxa6 {[%clk 0:01:19.3]} 15... bxa6 {[%clk 0:01:45.3]} 16. Nxd5 {[%clk
0:01:18.8]} 16... Qb7 {[%clk 0:01:16.6]} 17. Nxe7 {[%clk 0:01:10.5]} 17... Kxe7
{[%clk 0:01:14.8]} 18. Rc7 {[%clk 0:01:10.3]} 18... Qb6 {[%clk 0:00:54.8]} 19.
Rac1 {[%clk 0:01:09.4]} 19... Rd8 {[%clk 0:00:55]} 20. R1c6 {[%clk 0:00:54]}
20... Qa5 {[%clk 0:00:54.8]} 21. h3 {[%clk 0:00:26.7]} 21... f6 {[%clk
0:00:50.3]} 22. Bd6+ {[%clk 0:00:14.5]} 22... Kf7 {[%clk 0:00:49.6]} 0-1

[Event "*** Titled Tuesday Blitz"]
[Site "Chess.com"]
[Date "2021.03.16"]
[Round "10"]
[White "Gloomy_Wanderer"]
[Black "FairChess_on_YouTube"]
[Result "0-1"]
[WhiteElo "2687"]
[BlackElo "2961"]
[TimeControl "180+1"]
[EndTime "11:53:39 PDT"]
[Termination "FairChess_on_YouTube won by resignation"]

1. d4 {[%clk 0:03:00.9]} 1... Nf6 {[%clk 0:02:54.5]} 2. Nf3 {[%clk 0:03:01.2]}
2... c5 {[%clk 0:02:54.2]} 3. d5 {[%clk 0:03:01]} 3... b5 {[%clk 0:02:54.6]} 4.
Bg5 {[%clk 0:03:00.8]} 4... Qb6 {[%clk 0:02:53.8]} 5. a4 {[%clk 0:03:00.6]} 5...
b4 {[%clk 0:02:53.2]} 6. a5 {[%clk 0:03:00.8]} 6... Qd6 {[%clk 0:02:53.3]} 7. c4
{[%clk 0:03:00.8]} 7... Ne4 {[%clk 0:02:53.5]} 8. Bc1 {[%clk 0:03:00.8]} 8... g6
{[%clk 0:02:47.3]} 9. Qc2 {[%clk 0:02:59.7]} 9... f5 {[%clk 0:02:47]} 10. h3
{[%clk 0:02:57.5]} 10... Bg7 {[%clk 0:02:45.8]} 11. g4 {[%clk 0:02:57.5]} 11...
Na6 {[%clk 0:02:42.5]} 12. gxf5 {[%clk 0:02:53.9]} 12... gxf5 {[%clk 0:02:43.4]}
13. Nbd2 {[%clk 0:02:53.7]} 13... b3 {[%clk 0:02:34.2]} 14. Nxb3 {[%clk
0:02:36]} 14... Nb4 {[%clk 0:02:33.2]} 15. Qd1 {[%clk 0:02:35.1]} 15... Ba6
{[%clk 0:02:16.1]} 16. e3 {[%clk 0:02:35]} 16... Rg8 {[%clk 0:02:15.1]} 17. Ra4
{[%clk 0:02:23.3]} 17... Rb8 {[%clk 0:02:14.2]} 18. Rg1 {[%clk 0:02:22]} 18...
Qf6 {[%clk 0:02:06.4]} 19. h4 {[%clk 0:01:56]} 19... d6 {[%clk 0:01:59.9]} 20.
Ng5 {[%clk 0:01:54.4]} 20... Kd7 {[%clk 0:01:59]} 21. Nxe4 {[%clk 0:01:49.3]}
21... fxe4 {[%clk 0:01:59.9]} 22. Qg4+ {[%clk 0:01:49.4]} 22... Kc7 {[%clk
0:01:59.7]} 23. Qxe4 {[%clk 0:01:47.3]} 23... Bc8 {[%clk 0:01:58.1]} 24. Bd3
{[%clk 0:00:57.1]} 24... Nxd3+ {[%clk 0:01:34.4]} 25. Qxd3 {[%clk 0:00:58]}
25... Bf5 {[%clk 0:01:34.1]} 26. e4 {[%clk 0:00:58.4]} 26... Qxh4 {[%clk
0:01:21.6]} 27. Nd2 {[%clk 0:00:28.5]} 27... Bg4 {[%clk 0:00:57.9]} 28. b4
{[%clk 0:00:26.7]} 28... Bd4 {[%clk 0:00:55.8]} 29. Qg3 {[%clk 0:00:20.5]} 29...
Qf6 {[%clk 0:00:54.8]} 30. Nb3 {[%clk 0:00:17.7]} 30... Bd7 {[%clk 0:00:53.3]}
31. Qh2 {[%clk 0:00:15.4]} 31... Bc3+ {[%clk 0:00:48.6]} 32. Bd2 {[%clk
0:00:15]} 32... Bxa4 {[%clk 0:00:48.5]} 0-1

[Event "*** Titled Tuesday Blitz"]
[Site "Chess.com"]
[Date "2021.03.16"]
[Round "10"]
[White "Sergey85Rodchenkov"]
[Black "zmeeed67"]
[Result "0-1"]
[WhiteElo "2526"]
[BlackElo "2449"]
[TimeControl "180+1"]
[EndTime "11:53:41 PDT"]
[Termination "zmeeed67 won by checkmate"]

1. e4 {[%clk 0:01:52.9]} 1... c5 {[%clk 0:02:59.2]} 2. Nf3 {[%clk 0:01:53]} 2...
Nf6 {[%clk 0:02:58.8]} 3. Nc3 {[%clk 0:01:52.3]} 3... d5 {[%clk 0:02:59.3]} 4.
exd5 {[%clk 0:01:51.7]} 4... Nxd5 {[%clk 0:03:00.2]} 5. d4 {[%clk 0:01:52.2]}
5... Nxc3 {[%clk 0:02:59.5]} 6. bxc3 {[%clk 0:01:52.5]} 6... e6 {[%clk
0:03:00.4]} 7. Rb1 {[%clk 0:01:52.1]} 7... Nc6 {[%clk 0:02:54.9]} 8. Bd3 {[%clk
0:01:52.2]} 8... Be7 {[%clk 0:02:51.9]} 9. O-O {[%clk 0:01:52.1]} 9... O-O
{[%clk 0:02:52.1]} 10. Qe2 {[%clk 0:01:52.5]} 10... cxd4 {[%clk 0:02:43.6]} 11.
cxd4 {[%clk 0:01:52]} 11... Nxd4 {[%clk 0:02:37]} 12. Nxd4 {[%clk 0:01:51.9]}
12... Qxd4 {[%clk 0:02:37.9]} 13. Rd1 {[%clk 0:01:52.2]} 13... Qh4 {[%clk
0:02:15]} 14. Rb5 {[%clk 0:01:50.4]} 14... e5 {[%clk 0:02:10.7]} 15. Rxe5 {[%clk
0:01:44.3]} 15... Bg4 {[%clk 0:02:03.9]} 16. f3 {[%clk 0:01:40.7]} 16... Be6
{[%clk 0:01:48.2]} 17. g3 {[%clk 0:01:21.6]} 17... Qh3 {[%clk 0:01:38.8]} 18. f4
{[%clk 0:01:07.5]} 18... Bg4 {[%clk 0:01:32.4]} 19. Qe4 {[%clk 0:01:04.6]} 19...
Bxd1 {[%clk 0:00:41.4]} 20. Rxe7 {[%clk 0:01:03.6]} 20... Rad8 {[%clk
0:00:41.4]} 21. Bb2 {[%clk 0:01:01.4]} 21... Bxc2 {[%clk 0:00:27.5]} 22. Bxc2
{[%clk 0:00:22.8]} 22... Rd2 {[%clk 0:00:27.2]} 23. Bc3 {[%clk 0:00:15]} 23...
Qxh2+ {[%clk 0:00:26.4]} 24. Kf1 {[%clk 0:00:15]} 24... Qf2# {[%clk 0:00:27.3]}
0-1

[Event "*** Titled Tuesday Blitz"]
[Site "Chess.com"]
[Date "2021.03.16"]
[Round "10"]
[White "Konavets"]
[Black "DenLaz"]
[Result "0-1"]
[WhiteElo "2945"]
[BlackElo "2873"]
[TimeControl "180+1"]
[EndTime "11:53:51 PDT"]
[Termination "DenLaz won on time"]

1. e4 {[%clk 0:03:00.9]} 1... e5 {[%clk 0:03:00.3]} 2. Nf3 {[%clk 0:02:59.3]}
2... Nc6 {[%clk 0:03:00.5]} 3. Bc4 {[%clk 0:02:59.8]} 3... Bc5 {[%clk
0:03:00.1]} 4. c3 {[%clk 0:02:58.2]} 4... Nf6 {[%clk 0:03:00.1]} 5. d3 {[%clk
0:02:58.3]} 5... d6 {[%clk 0:03:00.1]} 6. Bg5 {[%clk 0:02:57.5]} 6... h6 {[%clk
0:02:57.5]} 7. Bh4 {[%clk 0:02:57.2]} 7... a6 {[%clk 0:02:56.7]} 8. Nbd2 {[%clk
0:02:55.5]} 8... Ba7 {[%clk 0:02:55.4]} 9. a4 {[%clk 0:02:52.6]} 9... g5 {[%clk
0:02:53.3]} 10. Bg3 {[%clk 0:02:51.6]} 10... O-O {[%clk 0:02:51.9]} 11. O-O
{[%clk 0:02:35.9]} 11... Kg7 {[%clk 0:02:43.7]} 12. d4 {[%clk 0:02:28.4]} 12...
Qe7 {[%clk 0:02:36.1]} 13. Re1 {[%clk 0:02:13.7]} 13... Bg4 {[%clk 0:02:19.8]}
14. h3 {[%clk 0:02:06]} 14... Bh5 {[%clk 0:02:19.2]} 15. Bd5 {[%clk 0:01:42.8]}
15... Nd7 {[%clk 0:01:54.2]} 16. Nc4 {[%clk 0:01:34.4]} 16... exd4 {[%clk
0:01:48.8]} 17. cxd4 {[%clk 0:01:23.9]} 17... Bxf3 {[%clk 0:01:40.5]} 18. Qxf3
{[%clk 0:01:23.8]} 18... Nxd4 {[%clk 0:01:39.6]} 19. Qc3 {[%clk 0:01:18.8]}
19... Nf6 {[%clk 0:01:23]} 20. Ne3 {[%clk 0:00:44.5]} 20... Kg8 {[%clk
0:01:11.3]} 21. Rad1 {[%clk 0:00:18.1]} 21... Nxe4 {[%clk 0:00:23.1]} 0-1

[Event "*** Titled Tuesday Blitz"]
[Site "Chess.com"]
[Date "2021.03.16"]
[Round "10"]
[White "GelmanAlexander"]
[Black "Piacramling"]
[Result "1-0"]
[WhiteElo "2557"]
[BlackElo "2347"]
[TimeControl "180+1"]
[EndTime "11:53:52 PDT"]
[Termination "GelmanAlexander won by checkmate"]

1. d4 {[%clk 0:03:00.9]} 1... Nf6 {[%clk 0:02:58.8]} 2. Nc3 {[%clk 0:03:00.7]}
2... d5 {[%clk 0:02:57.3]} 3. Bf4 {[%clk 0:03:00.3]} 3... a6 {[%clk 0:02:52.7]}
4. e3 {[%clk 0:03:00]} 4... c5 {[%clk 0:02:50.4]} 5. Nf3 {[%clk 0:02:59.9]} 5...
Nc6 {[%clk 0:02:50.2]} 6. Ne5 {[%clk 0:02:59.4]} 6... Bf5 {[%clk 0:02:42.1]} 7.
g4 {[%clk 0:02:58.9]} 7... Be6 {[%clk 0:02:15]} 8. g5 {[%clk 0:02:40.6]} 8...
cxd4 {[%clk 0:01:32.2]} 9. exd4 {[%clk 0:02:39.8]} 9... Nd7 {[%clk 0:01:27.5]}
10. Nf3 {[%clk 0:02:09.6]} 10... Nb6 {[%clk 0:01:20.2]} 11. Rg1 {[%clk
0:01:31.9]} 11... g6 {[%clk 0:01:06.3]} 12. h4 {[%clk 0:01:27.3]} 12... Bg7
{[%clk 0:00:50.8]} 13. h5 {[%clk 0:01:27.4]} 13... Rg8 {[%clk 0:00:50.2]} 14.
Qd2 {[%clk 0:01:19.9]} 14... Bf5 {[%clk 0:00:49.1]} 15. O-O-O {[%clk 0:01:17.6]}
15... Qd7 {[%clk 0:00:41.5]} 16. h6 {[%clk 0:00:55.5]} 16... Bh8 {[%clk
0:00:40.1]} 17. Ne5 {[%clk 0:00:52.7]} 17... Bxe5 {[%clk 0:00:38.2]} 18. Bxe5
{[%clk 0:00:50.7]} 18... O-O-O {[%clk 0:00:33.9]} 19. Bh2 {[%clk 0:00:47.5]}
19... Nb4 {[%clk 0:00:27.6]} 20. Qf4 {[%clk 0:00:46.5]} 20... Nc6 {[%clk
0:00:22.4]} 21. a4 {[%clk 0:00:26.1]} 21... e5 {[%clk 0:00:13.8]} 22. dxe5
{[%clk 0:00:25.5]} 22... d4 {[%clk 0:00:13.2]} 23. e6 {[%clk 0:00:21.5]} 23...
Qxe6 {[%clk 0:00:11.7]} 24. Qc7# {[%clk 0:00:16]} 1-0

[Event "*** Titled Tuesday Blitz"]
[Site "Chess.com"]
[Date "2021.03.16"]
[Round "10"]
[White "MartinMatthiesen"]
[Black "IMAghasiyevKamal"]
[Result "0-1"]
[WhiteElo "2384"]
[BlackElo "2497"]
[TimeControl "180+1"]
[EndTime "11:53:55 PDT"]
[Termination "IMAghasiyevKamal won on time"]

1. d4 {[%clk 0:03:00.9]} 1... d5 {[%clk 0:02:59.5]} 2. c4 {[%clk 0:02:59.6]}
2... e6 {[%clk 0:02:59.1]} 3. Nc3 {[%clk 0:02:59.1]} 3... Nf6 {[%clk 0:02:58.4]}
4. cxd5 {[%clk 0:02:58.9]} 4... exd5 {[%clk 0:02:58.2]} 5. Bg5 {[%clk
0:02:58.2]} 5... c6 {[%clk 0:02:57.8]} 6. e3 {[%clk 0:02:57.8]} 6... Nbd7 {[%clk
0:02:57]} 7. Bd3 {[%clk 0:02:56.6]} 7... Be7 {[%clk 0:02:57.3]} 8. Nge2 {[%clk
0:02:55.9]} 8... h6 {[%clk 0:02:56.1]} 9. Bh4 {[%clk 0:02:55.3]} 9... Nh5 {[%clk
0:02:55.7]} 10. Bxe7 {[%clk 0:02:54.5]} 10... Qxe7 {[%clk 0:02:55.8]} 11. O-O
{[%clk 0:02:54.2]} 11... O-O {[%clk 0:02:54.4]} 12. Qd2 {[%clk 0:02:54]} 12...
Re8 {[%clk 0:02:46.3]} 13. Rae1 {[%clk 0:02:53]} 13... Nb6 {[%clk 0:02:05.9]}
14. Nc1 {[%clk 0:02:31.1]} 14... Be6 {[%clk 0:01:59.1]} 15. f3 {[%clk
0:02:28.9]} 15... c5 {[%clk 0:01:56.8]} 16. dxc5 {[%clk 0:02:15.5]} 16... Qxc5
{[%clk 0:01:55.9]} 17. Nb3 {[%clk 0:02:01.7]} 17... Qb4 {[%clk 0:01:49.7]} 18.
Bb1 {[%clk 0:01:46.3]} 18... Nc4 {[%clk 0:01:45.7]} 19. Qd4 {[%clk 0:01:25.9]}
19... Nf6 {[%clk 0:01:40]} 20. Rf2 {[%clk 0:00:44.4]} 20... a5 {[%clk
0:01:30.7]} 21. Nc5 {[%clk 0:00:40]} 21... Nxb2 {[%clk 0:01:28.6]} 22. Qxb4
{[%clk 0:00:17.3]} 22... axb4 {[%clk 0:01:28.3]} 23. Rxb2 {[%clk 0:00:16.8]}
23... bxc3 {[%clk 0:01:27.5]} 24. Rxb7 {[%clk 0:00:17.3]} 24... d4 {[%clk
0:01:15]} 25. exd4 {[%clk 0:00:15.9]} 25... Bd5 {[%clk 0:01:09.8]} 26. Rxe8+
{[%clk 0:00:11.1]} 26... Rxe8 {[%clk 0:01:06.8]} 27. Rb4 {[%clk 0:00:11.6]}
27... g5 {[%clk 0:00:59.7]} 28. Kf2 {[%clk 0:00:11.1]} 28... Ra8 {[%clk
0:00:54.7]} 29. Ke3 {[%clk 0:00:09.1]} 29... Ra3 {[%clk 0:00:53.4]} 30. Nb3
{[%clk 0:00:06.9]} 30... Be6 {[%clk 0:00:43.6]} 0-1